bitfinex-derivatives/quotes_SOLF0:USTF0_20241230
["timestamp","ask_amount","ask_price","bid_price","bid_amount"]
[1735540629498,2.5942,193.14,193.09,2.5948]
[1735540629798,8.26547368,193.16,193.09,2.5948]
[1735540630500,2.5944,193.13,193.09,2.5948]
[1735540631404,2.5944,193.13,193.1,4.50886624]
[1735540631701,2.5944,193.13,193.09,2.5948]
[1735540633595,2.5948,193.1,193.06,2.5952]
[1735540633798,8.26547368,193.1,193.07,4.50891514]
[1735540633999,8.26547368,193.1,193.02,7.05821596]
[1735540634305,8.26547368,193.08,193.03,8.48524233]
[1735540634500,8.26547368,193.08,193.04,8.48524233]
[1735540634700,8.26547368,193.08,193.05,4.51054491]
[1735540634900,8.26547368,193.06,192.99,7.05821596]
[1735540635205,2.5954,193.05,193.0,19.34990437]
[1735540635401,2.5954,193.05,193.0,10.86147368]
[1735540635603,2.5954,193.05,193.01,8.48831225]
[1735540635802,2.5954,193.05,193.02,8.48831225]
[1735540636002,10.86077368,193.06,193.03,8.48831225]
[1735540636203,10.86077368,193.06,193.04,4.51219511]
[1735540636404,2.5953,193.06,193.01,2.5959]
[1735540636705,2.595,193.09,193.04,2.5954]
[1735540638010,8.26547368,193.1,193.04,2.5954]
[1735540638210,2.5951,193.08,193.04,2.5954]
[1735540639311,2.5951,193.08,193.05,4.51331118]
[1735540639611,2.5952,193.07,193.03,2.5957]
[1735540639813,2.5952,193.07,193.04,8.49041849]
[1735540640016,8.26547368,193.1,193.05,4.5133144]
[1735540640309,8.26547368,193.1,193.02,11.30547368]
[1735540640510,8.26547368,193.1,193.03,8.49075493]
[1735540640709,8.26547368,193.1,193.04,4.51349251]
[1735540640912,8.26547368,193.1,193.02,13.90127368]
[1735540641106,8.26547368,193.08,193.03,8.49106574]
[1735540641300,8.26547368,193.08,193.04,4.51365857]
[1735540641503,2.5953,193.07,193.02,3.04]
[1735540641704,8.26547368,193.08,193.03,4.51416839]
[1735540641908,8.26547368,193.08,193.0,8.26547368]
[1735540641909,8.26547368,193.06,192.98,8.26547368]
[1735540642104,8.26547368,193.04,192.99,8.4925367]
[1735540642304,2.596,193.01,193.0,8.4925367]
[1735540643412,8.26547368,193.04,192.96,10.86207368]
[1735540643613,2.5962,193.0,192.97,8.49158513]
[1735540643813,2.5962,193.0,192.98,8.49158513]
[1735540644008,2.5962,193.0,192.99,4.51397759]
[1735540644615,2.5962,193.0,192.96,10.86207368]
[1735540644914,2.5962,193.0,192.97,8.4864956]
[1735540645109,2.5962,193.0,192.96,10.86207368]
[1735540645315,2.5962,193.0,192.97,8.48645569]
[1735540645513,2.5962,193.0,192.98,4.51125337]
[1735540645708,8.26547368,193.02,192.96,8.26547368]
[1735540645909,2.5964,192.99,192.97,8.48395696]
[1735540646110,2.5964,192.99,192.95,2.5968]
[1735540646412,2.5964,192.99,192.96,8.4840887]
[1735540646614,2.5964,192.99,192.97,4.50999796]
[1735540646813,2.5964,192.99,192.95,2.5968]
[1735540647109,2.5964,192.99,192.96,8.48148124]
[1735540647315,2.5964,192.99,192.95,2.5968]
[1735540647515,2.5964,192.99,192.96,4.50716864]
[1735540647720,2.5964,192.99,192.95,2.5968]
[1735540647910,2.5965,192.97,192.94,8.26547368]
[1735540648214,2.5965,192.97,192.95,4.50624621]
[1735540648411,2.5965,192.97,192.93,2.597]
[1735540648718,2.5965,192.97,192.94,8.47662706]
[1735540648914,2.5965,192.97,192.93,2.597]
[1735540649114,2.5965,192.97,192.94,4.50650334]
[1735540649316,2.5965,192.97,192.93,2.597]
[1735540649512,3.04,193.04,192.92,8.26547368]
[1735540649513,2.5967,192.96,192.92,2.5971]
[1735540649714,2.5967,192.96,192.93,4.50517873]
[1735540650017,2.5967,192.96,192.92,2.5971]
[1735540650217,8.26547368,192.98,192.91,9.76007368]
[1735540650416,2.5964,192.98,192.94,2.5969]
[1735540652920,2.5962,192.99,192.93,8.26547368]
[1735540653120,8.26547368,193.0,192.94,4.5005284]
[1735540653317,8.26547368,193.0,192.93,8.26547368]
[1735540653621,2.5965,192.97,192.93,10.86247368]
[1735540654625,2.5964,192.98,192.94,2.5969]
[1735540657618,10.86167368,193.0,192.96,2.5966]
[1735540657817,2.5962,193.0,192.96,2.5966]
[1735540658020,8.26547368,193.02,192.93,8.26547368]
[1735540658224,8.26547368,193.0,192.93,8.26547368]
[1735540658422,8.26547368,192.98,192.93,2.597]
[1735540658923,2.5966,192.97,192.93,2.597]
[1735540659221,2.5966,192.97,192.94,2.5969]
[1735540659422,8.26547368,193.0,192.94,2.5969]
[1735540660222,8.26547368,193.0,192.91,8.26547368]
[1735540660223,8.26547368,193.02,192.95,8.26547368]
[1735540660923,8.26547368,193.02,192.97,2.5964]
[1735540661223,8.26547368,193.02,192.95,8.26547368]
[1735540661522,2.5963,192.99,192.95,10.86227368]
[1735540662925,8.26547368,193.02,192.96,2.5966]
[1735540663118,8.26547368,193.02,192.95,8.26547368]
[1735540663424,8.26547368,193.05,193.01,2.5958]
[1735540663723,8.26547368,193.05,192.99,8.26547368]
[1735540664024,8.26547368,193.05,193.01,2.5958]
[1735540664714,8.26547368,193.07,193.01,8.26547368]
[1735540665425,2.5953,193.06,193.01,10.86127368]
[1735540667829,8.26547368,193.07,193.01,8.26547368]
[1735540668427,8.26547368,193.07,192.99,8.26547368]
[1735540668630,8.26547368,193.07,193.0,4.5003987]
[1735540668832,8.26547368,193.07,192.99,8.26547368]
[1735540669131,8.26547368,193.07,193.0,4.50046008]
[1735540669428,8.26547368,193.07,192.99,8.26547368]
[1735540669630,2.5956,193.04,193.0,4.50198051]
[1735540669824,2.5956,193.04,192.99,10.86157368]
[1735540670031,8.26547368,193.05,192.99,8.26547368]
[1735540670233,8.26547368,193.05,193.0,4.50264051]
[1735540670427,8.26547368,193.05,192.99,8.26547368]
[1735540670627,8.26547368,193.05,193.0,4.50246755]
[1735540670832,8.26547368,193.05,193.0,2.5959]
[1735540671032,8.26547368,193.05,192.99,8.26547368]
[1735540671332,8.26547368,193.05,193.02,2.5957]
[1735540673734,8.26547368,193.05,192.99,8.26547368]
[1735540673931,2.5957,193.03,193.0,4.50388044]
[1735540674133,2.5957,193.03,192.98,3.04]
[1735540674432,2.5957,193.03,192.99,8.47294224]
[1735540674629,2.5957,193.03,192.98,3.04]
[1735540674630,2.5957,193.03,193.0,4.50403836]
[1735540674928,10.86097368,193.05,193.0,2.596]
[1735540675636,10.86097368,193.05,193.01,4.50670326]
[1735540675834,10.86097368,193.05,193.0,2.596]
[1735540676038,10.86097368,193.05,193.01,4.50694211]
[1735540676336,10.86097368,193.05,193.0,2.596]
[1735540676733,10.86067368,193.07,193.02,2.5957]
[1735540676933,8.26547368,193.07,192.99,8.26547368]
[1735540677132,8.26547368,193.07,192.97,3.04]
[1735540677133,8.26547368,193.07,193.01,8.26547368]
[1735540677333,8.26547368,193.07,193.02,8.47937962]
[1735540677635,10.86057368,193.07,193.03,7.10224017]
[1735540677836,10.86057368,193.07,193.03,2.5955]
[1735540678635,10.86057368,193.07,193.04,2.5955]
[1735540679139,8.26547368,193.07,193.04,2.5955]
[1735540679339,8.26547368,193.07,193.01,8.26547368]
[1735540679539,8.26547368,193.07,193.05,2.5953]
[1735540681135,8.26547368,193.09,193.06,2.5952]
[1735540681537,2.5948,193.1,193.06,2.5952]
[1735540682741,8.26547368,193.11,193.03,11.30547368]
[1735540682941,8.26547368,193.11,193.07,2.5949]
[1735540684340,10.85997368,193.11,193.07,2.5949]
[1735540684737,8.26547368,193.11,193.07,2.5949]
[1735540684939,2.5947,193.1,193.07,2.5949]
[1735540685244,2.5947,193.1,193.06,2.5952]
[1735540685443,8.26547368,193.11,193.03,11.30547368]
[1735540685645,2.5951,193.07,193.04,4.50455492]
[1735540685947,8.26547368,193.11,193.05,4.50472466]
[1735540686241,8.26547368,193.11,193.03,11.30547368]
[1735540686441,8.26547368,193.11,193.04,8.47421352]
[1735540686646,8.26547368,193.11,193.05,4.50469372]
[1735540686840,8.26547368,193.11,193.03,11.30547368]
[1735540687138,8.26547368,193.11,193.04,8.47278234]
[1735540687340,8.26547368,193.11,193.05,4.50391819]
[1735540687545,2.5947,193.1,193.06,2.5951]
[1735540687750,2.5947,193.1,193.03,11.30547368]
[1735540688043,2.5947,193.1,193.04,8.47157934]
[1735540688245,2.5947,193.1,193.05,4.50327923]
[1735540688445,2.5947,193.1,193.04,8.26547368]
[1735540688746,2.5947,193.1,193.05,4.5023783]
[1735540688942,2.5947,193.1,193.04,8.26547368]
[1735540689245,2.5947,193.1,193.06,2.5951]
[1735540690049,2.5947,193.1,193.07,2.595]
[1735540690243,4.5747,193.16,193.04,8.26547368]
[1735540690448,4.5747,193.16,193.06,8.26547368]
[1735540690644,8.26547368,193.14,193.04,3.1671]
[1735540690848,4.5747,193.16,193.04,3.1671]
[1735540690849,10.85987368,193.12,193.05,8.46498509]
[1735540691054,8.26547368,193.12,193.06,4.49975802]
[1735540691348,2.5946,193.11,193.05,8.26547368]
[1735540692349,2.5947,193.1,193.04,3.1671]
[1735540692545,2.5947,193.1,193.05,4.50012445]
[1735540692742,2.5947,193.1,193.04,11.43257368]
[1735540692941,2.5947,193.1,193.05,4.50012698]
[1735540693143,2.5947,193.1,193.04,11.43257368]
[1735540693350,2.5947,193.1,193.05,4.50009785]
[1735540693549,2.5947,193.1,193.06,2.5952]
[1735540694749,2.5946,193.11,193.07,2.5951]
[1735540695152,8.26547368,193.12,193.04,11.43257368]
[1735540695454,8.26547368,193.12,193.06,8.26547368]
[1735540696149,10.85987368,193.12,193.08,2.5948]
[1735540701754,89.09696407,193.26,193.1,8.26547368]
[1735540702056,8.26547368,193.2,193.13,8.26547368]
[1735540702260,89.09696407,193.26,193.16,2.5938]
[1735540702460,0.78560005,193.25,193.16,2.5938]
[1735540702655,0.78560005,193.25,193.17,8.26547368]
[1735540702854,86.4460941,193.26,193.21,2.5931]
[1735540703056,10.85787368,193.27,193.2,3.04]
[1735540703268,8.26547368,193.27,193.2,3.04]
[1735540703458,8.26547368,193.25,193.2,5.6333]
[1735540704058,10.85817368,193.25,193.2,5.6333]
[1735540704663,2.5929,193.23,193.2,3.04]
[1735540704961,8.26547368,193.23,193.2,3.04]
[1735540705161,8.26547368,193.23,193.15,11.30547368]
[1735540705359,8.26547368,193.23,193.17,8.26547368]
[1735540705663,8.26547368,193.25,193.17,8.26547368]
[1735540705866,8.26547368,193.23,193.17,8.26547368]
[1735540706354,2.5926,193.26,193.2,2.5933]
[1735540706557,10.85807368,193.26,193.2,5.6333]
[1735540707463,10.85807368,193.26,193.21,2.5932]
[1735540709059,10.85807368,193.26,193.2,3.04]
[1735540709060,8.26547368,193.26,193.2,3.04]
[1735540709260,8.26547368,193.26,193.17,8.26547368]
[1735540709460,8.26547368,193.24,193.19,3.04]
[1735540710466,10.85827368,193.24,193.19,5.6334]
[1735540712167,8.26547368,193.24,193.19,5.6334]
[1735540712371,2.5929,193.23,193.19,3.04]
[1735540712671,8.26547368,193.22,193.17,3.04]
[1735540712860,8.26547368,193.2,193.12,4.47717689]
[1735540713066,8.26547368,193.18,193.13,3.04]
[1735540713266,2.5941,193.14,193.13,3.04]
[1735540714266,10.85947368,193.16,193.13,3.04]
[1735540714472,8.26547368,193.16,193.13,3.04]
[1735540715366,2.5941,193.15,193.13,3.04]
[1735540717872,2.5935,193.19,193.13,3.04]
[1735540718172,10.85897368,193.19,193.14,2.5941]
[1735540718470,2.5936,193.18,193.14,2.5941]
[1735540720972,2.5936,193.18,193.13,3.04]
[1735540721271,2.5936,193.18,193.13,5.6342]
[1735540721471,2.5936,193.18,193.13,2.5942]
[1735540721773,8.26547368,193.15,193.09,3.04]
[1735540722970,10.85957368,193.15,193.11,2.5945]
[1735540725276,2.5944,193.12,193.08,10.86027368]
[1735540725574,8.26547368,193.13,193.05,9.85227368]
[1735540725769,2.5939,193.17,193.08,2.5949]
[1735540725969,8.26547368,193.13,193.08,2.5949]
[1735540726874,10.85987368,193.13,193.08,2.5949]
[1735540729081,8.26547368,193.13,193.07,3.04]
[1735540729280,10.86007368,193.11,193.07,3.04]
[1735540729981,10.86007368,193.11,193.06,2.5951]
[1735540730880,8.26547368,193.11,193.06,2.5951]
[1735540731078,2.5948,193.1,193.05,5.6353]
[1735540732881,2.5948,193.1,193.05,2.5953]
[1735540737690,2.5949,193.09,193.05,2.5953]
[1735540737877,2.5949,193.09,193.03,2.5956]
[1735540737878,8.26547368,193.09,193.03,2.5956]
[1735540738186,8.26547368,193.07,193.01,11.30547368]
[1735540738385,8.26547368,193.07,193.02,8.45793706]
[1735540738591,2.5952,193.07,193.03,4.49603301]
[1735540738783,10.86067368,193.07,193.02,2.5956]
[1735540738983,8.26547368,193.07,192.99,11.30547368]
[1735540739187,2.5955,193.04,193.0,11.05615201]
[1735540739382,2.5955,193.04,193.01,4.4972211]
[1735540739589,2.5955,193.04,193.0,2.596]
[1735540739783,2.5955,193.04,193.01,4.49711527]
[1735540739989,2.5955,193.04,193.0,2.596]
[1735540740189,2.5955,193.04,193.01,4.49721957]
[1735540740485,8.26547368,193.05,192.97,3.2015]
[1735540740692,2.5956,193.03,192.99,2.5961]
[1735540742789,8.26547368,193.05,192.99,2.5961]
[1735540742991,2.5955,193.04,192.99,2.5961]
[1735540743191,2.5955,193.04,192.97,11.30547368]
[1735540743388,2.5955,193.04,193.0,2.596]
[1735540744693,8.26547368,193.07,193.01,8.26547368]
[1735540745683,2.595,193.08,193.03,8.26547368]
[1735540745889,2.5948,193.09,193.03,8.26547368]
[1735540746988,2.5948,193.09,193.04,2.5955]
[1735540748396,8.26547368,193.08,193.04,2.5955]
[1735540754893,8.26547368,193.08,193.04,2.5954]
[1735540755302,8.26547368,193.06,192.98,3.1118]
[1735540755497,8.26547368,193.04,192.99,8.46319874]
[1735540755698,8.26547368,193.04,193.0,11.05909874]
[1735540755893,8.26547368,193.06,193.01,4.50134367]
[1735540756101,8.26547368,193.06,193.02,4.50064474]
[1735540756405,8.26547368,193.08,193.05,2.5954]
[1735540759496,8.26547368,193.08,193.01,8.26547368]
[1735540759705,8.26547368,193.08,193.03,2.5955]
[1735540759706,10.86047368,193.08,193.03,2.5955]
[1735540759902,8.26547368,193.06,193.0,3.04]
[1735540760207,8.26547368,193.04,193.01,4.50708997]
[1735540760414,8.26547368,193.04,193.0,5.636]
[1735540760800,8.26547368,193.04,192.97,29.52500066]
[1735540760999,8.26547368,193.04,192.98,8.48273468]
[1735540761204,8.26547368,193.04,192.99,4.5092578]
[1735540761508,8.26547368,193.04,192.97,3.04]
[1735540761806,8.26547368,193.04,192.98,8.48246466]
[1735540762009,8.26547368,193.04,192.99,4.5091108]
[1735540762306,8.26547368,193.04,192.97,3.04]
[1735540762507,8.26547368,193.02,192.98,11.07721396]
[1735540762707,8.26547368,193.02,192.99,4.50828798]
[1735540762907,8.26547368,193.02,192.98,2.5963]
[1735540763205,10.86127368,193.02,192.99,4.50930837]
[1735540763400,10.86127368,193.02,192.97,5.6364]
[1735540763704,8.26547368,193.0,192.98,4.50981437]
[1735540763902,8.26547368,193.0,192.93,3.04]
[1735540764103,8.26547368,192.98,192.95,2.5967]
[1735540764303,8.26547368,192.98,192.96,8.48515003]
[1735540764601,8.26547368,192.98,192.92,28.34603597]
[1735540764904,8.26547368,192.96,192.92,28.34603597]
[1735540765306,8.26547368,192.96,192.89,28.34603597]
[1735540765497,3.04,193.02,192.9,8.48703628]
[1735540765498,8.26547368,192.94,192.9,8.48703628]
[1735540765699,8.26547368,192.94,192.91,4.51160701]
[1735540765901,8.26547368,192.94,192.9,2.5974]
[1735540766099,8.26547368,192.94,192.91,4.51357107]
[1735540766300,8.26547368,192.94,192.9,2.5974]
[1735540766505,8.26547368,192.94,192.91,4.51329316]
[1735540766699,8.26547368,192.94,192.9,2.5974]
[1735540766899,8.26547368,192.94,192.91,4.51171533]
[1735540767096,8.26547368,192.94,192.9,2.5974]
[1735540767496,8.26547368,192.94,192.89,3.04]
[1735540767698,8.26547368,192.94,192.9,4.50979033]
[1735540768006,8.26547368,192.92,192.86,8.26547368]
[1735540768206,8.26547368,192.92,192.87,11.08212654]
[1735540768405,8.26547368,192.92,192.88,4.5102223]
[1735540768606,8.26547368,192.92,192.87,2.5978]
[1735540769505,10.86257368,192.92,192.87,2.5978]
[1735540769705,8.26547368,192.91,192.86,3.04]
[1735540769903,8.26547368,192.91,192.87,4.50677734]
[1735540770105,8.26547368,192.89,192.86,3.04]
[1735540770404,8.26547368,192.89,192.84,8.26547368]
[1735540770599,8.26547368,192.89,192.85,8.47430367]
[1735540770800,8.26547368,192.89,192.84,8.26547368]
[1735540770801,8.26547368,192.89,192.86,4.50487693]
[1735540771008,2.5971,192.93,192.84,8.26547368]
[1735540771208,8.26547368,192.91,192.85,8.47398728]
[1735540771400,8.26547368,192.91,192.86,4.50470613]
[1735540771598,8.26547368,192.91,192.86,2.5979]
[1735540773006,8.26547368,192.91,192.87,2.5977]
[1735540774514,2.5977,192.88,192.83,2.5983]
[1735540774712,8.26547368,192.87,192.83,2.5983]
[1735540775108,8.26547368,192.87,192.84,2.5982]
[1735540776914,8.26547368,192.87,192.85,2.598]
[1735540781417,8.26547368,192.89,192.86,2.5979]
[1735540782012,8.26547368,192.89,192.84,2.5981]
[1735540782920,8.26547368,192.91,192.85,3.04]
[1735540783511,8.26547368,192.91,192.88,2.5975]
[1735540784215,8.26547368,192.91,192.85,3.04]
[1735540784917,8.26547368,192.91,192.87,2.5976]
[1735540785113,8.26547368,192.91,192.85,3.04]
[1735540785919,8.26547368,192.91,192.88,2.5975]
[1735540787621,10.86247368,192.93,192.89,2.5975]
[1735540789022,8.26547368,192.93,192.86,8.26547368]
[1735540789322,8.26547368,192.93,192.9,2.5973]
[1735540793424,8.26547368,192.91,192.88,3.04]
[1735540793624,8.26547368,192.91,192.89,2.5975]
[1735540795028,2.5975,192.9,192.86,2.5979]
[1735540795228,8.26547368,192.89,192.86,2.5979]
[1735540800534,8.26547368,192.89,192.85,3.04]
[1735540800734,10.86297368,192.89,192.85,5.638]
[1735540800932,10.86297368,192.89,192.85,3.04]
[1735540801731,8.26547368,192.89,192.86,2.5979]
[1735540802238,8.26547368,192.89,192.85,3.04]
[1735540802434,8.26547368,192.89,192.85,5.638]
[1735540803237,10.86297368,192.89,192.85,5.638]
[1735540803437,10.86297368,192.89,192.86,4.50431757]
[1735540803639,10.86297368,192.89,192.85,5.638]
[1735540804637,2.5977,192.88,192.84,2.5982]
[1735540804833,8.26547368,192.87,192.85,4.50866974]
[1735540805039,8.26547368,192.87,192.82,3.04]
[1735540805239,8.26547368,192.87,192.83,8.48151125]
[1735540805432,8.26547368,192.87,192.81,31.38603597]
[1735540805433,8.26547368,192.87,192.84,4.50873089]
[1735540805633,8.26547368,192.87,192.84,8.47973028]
[1735540805834,8.26547368,192.87,192.85,4.50873089]
[1735540806045,8.26547368,192.87,192.86,4.50873089]
[1735540806340,8.26547368,192.87,192.81,7.08650899]
[1735540806542,8.26547368,192.84,192.82,8.48664738]
[1735540806742,8.26547368,192.84,192.83,8.48664738]
[1735540807439,10.86377368,192.84,192.83,8.48664738]
[1735540807645,10.86377368,192.84,192.83,4.51147372]
[1735540808047,10.86377368,192.84,192.83,1e-08]
[1735540808748,2.5987,192.82,192.77,3.4490531]
[1735540808947,10.86417368,192.82,192.78,3.98102244]
[1735540809142,10.86417368,192.82,192.79,3.98102244]
[1735540809342,2.5987,192.81,192.8,3.98102244]
[1735540809547,10.86417368,192.81,192.8,3.98102244]
[1735540809744,10.86417368,192.81,192.8,3.98405324]
[1735540810343,10.86417368,192.81,192.75,33.98543597]
[1735540810643,10.86417368,192.81,192.76,3.98322024]
[1735540810841,10.86417368,192.81,192.77,3.98322024]
[1735540811051,10.86417368,192.81,192.78,3.98322024]
[1735540811249,10.86417368,192.81,192.79,3.98322024]
[1735540811552,10.86417368,192.81,192.75,5.6394]
[1735540811752,2.5989,192.8,192.76,6.58197095]
[1735540811945,2.5989,192.8,192.77,3.98267095]
[1735540812141,2.5989,192.8,192.76,2.5993]
[1735540812347,2.5989,192.8,192.77,3.98132365]
[1735540812547,2.5989,192.8,192.78,3.98132365]
[1735540812745,2.5989,192.8,192.79,3.98132365]
[1735540813444,2.5989,192.8,192.79,3.98117115]
[1735540814248,2.5989,192.8,192.76,2.5993]
[1735540814546,8.26547368,192.79,192.77,3.98028209]
[1735540814752,8.26547368,192.79,192.78,3.98028209]
[1735540815654,8.26547368,192.79,192.76,2.5993]
[1735540815849,8.26547368,192.79,192.77,3.97875546]
[1735540816152,8.26547368,192.79,192.76,2.5993]
[1735540816354,8.26547368,192.79,192.77,3.97773221]
[1735540816542,8.26547368,192.79,192.76,2.5993]
[1735540816749,8.26547368,192.79,192.77,3.97763404]
[1735540816947,8.26547368,192.79,192.76,2.5993]
[1735540817151,8.26547368,192.79,192.77,3.97769536]
[1735540817352,8.26547368,192.79,192.76,2.5993]
[1735540817751,8.26547368,192.79,192.77,3.9766186]
[1735540817953,8.26547368,192.79,192.76,2.5993]
[1735540818357,8.26547368,192.79,192.73,11.30547368]
[1735540818548,8.26547368,192.79,192.74,6.57524375]
[1735540818749,10.86447368,192.79,192.75,3.97574375]
[1735540819048,10.86447368,192.79,192.76,3.97574375]
[1735540819247,10.86447368,192.79,192.74,2.5995]
[1735540819453,10.86447368,192.79,192.75,3.97291544]
[1735540819654,10.86447368,192.79,192.76,3.97291544]
[1735540819848,10.86447368,192.79,192.74,2.5995]
[1735540820047,10.86447368,192.79,192.75,3.97288064]
[1735540820249,2.5991,192.78,192.76,3.97288064]
[1735540820448,2.5991,192.78,192.74,2.5995]
[1735540820743,2.5991,192.78,192.75,3.97232507]
[1735540820951,2.5991,192.78,192.74,2.5995]
[1735540821151,2.5991,192.78,192.75,3.97291804]
[1735540821352,2.5991,192.78,192.76,3.97291804]
[1735540821653,2.5991,192.78,192.74,2.5995]
[1735540821853,2.5991,192.78,192.75,3.97205433]
[1735540822051,10.86437368,192.79,192.76,3.97205433]
[1735540822248,10.86437368,192.79,192.74,2.5995]
[1735540822445,10.86437368,192.79,192.75,3.97133974]
[1735540822647,10.86437368,192.79,192.76,3.97133974]
[1735540822849,10.86437368,192.79,192.74,2.5995]
[1735540823049,8.26547368,192.78,192.75,6.57054188]
[1735540823250,8.26547368,192.78,192.76,3.97104188]
[1735540823451,8.26547368,192.78,192.75,2.5995]
[1735540823652,8.26547368,192.78,192.76,3.97071583]
[1735540823852,8.26547368,192.78,192.76,2.5993]
[1735540824047,4.72,192.85,192.76,2.5993]
[1735540824048,8.26547368,192.8,192.76,2.5993]
[1735540824850,4.72,192.85,192.71,11.30547368]
[1735540825059,4.72,192.85,192.73,8.26547368]
[1735540825252,8.26547368,192.81,192.75,8.26547368]
[1735540825451,8.26547368,192.81,192.76,3.9705547]
[1735540825646,4.72,192.85,192.77,3.96879364]
[1735540825849,8.26547368,192.81,192.76,3.04]
[1735540826056,8.26547368,192.81,192.77,3.96917309]
[1735540826252,8.26547368,192.81,192.76,3.04]
[1735540826453,8.26547368,192.81,192.77,3.96872138]
[1735540826751,8.26547368,192.81,192.76,3.04]
[1735540827053,8.26547368,192.81,192.78,2.599]
[1735540831155,8.26547368,192.81,192.79,2.5989]
[1735540831949,1.89688821,192.89,192.77,8.26547368]
[1735540832150,8.26547368,192.84,192.78,3.96929575]
[1735540832355,8.26547368,192.86,192.79,3.96929575]
[1735540832554,8.26547368,192.86,192.8,3.96929575]
[1735540832756,8.26547368,192.86,192.81,3.96929575]
[1735540832957,8.26547368,192.86,192.79,8.26547368]
[1735540833162,8.26547368,192.86,192.8,7.00818862]
[1735540833357,8.26547368,192.86,192.81,3.96845221]
[1735540833563,8.26547368,192.86,192.82,3.96845221]
[1735540833757,8.26547368,192.86,192.8,3.04]
[1735540833957,8.26547368,192.86,192.81,3.96858743]
[1735540834157,8.26547368,192.86,192.82,6.56698743]
[1735540834358,86.4460941,193.04,192.83,8.26547368]
[1735540834561,86.4460941,193.04,192.8,3.04]
[1735540834562,8.26547368,192.91,192.85,8.26547368]
[1735540834862,8.26547368,192.91,192.89,2.5976]
[1735540835555,1.5764,193.02,192.86,3.04]
[1735540835760,1.5764,193.02,192.87,12.23137163]
[1735540835761,8.26547368,192.95,192.87,12.23137163]
[1735540835960,8.26547368,192.95,192.88,3.96589795]
[1735540836161,8.26547368,192.95,192.9,2.5973]
[1735540836462,8.26547368,192.93,192.87,8.26547368]
[1735540836664,8.26547368,192.93,192.9,2.5974]
[1735540837657,8.26547368,192.95,192.91,2.5973]
[1735540838263,2.5965,192.97,192.91,2.5973]
[1735540838464,8.26547368,192.95,192.91,2.5973]
[1735540839363,10.86257368,192.93,192.87,10.86317368]
[1735540839569,8.26547368,192.91,192.88,3.96449294]
[1735540839769,8.26547368,192.91,192.86,3.04]
[1735540839966,10.86277368,192.91,192.86,2.598]
[1735540840169,8.26547368,192.89,192.84,3.04]
[1735540840363,8.26547368,192.87,192.85,3.96473624]
[1735540840567,8.26547368,192.87,192.84,3.04]
[1735540843473,10.86347368,192.87,192.84,3.04]
[1735540844670,2.598,192.86,192.8,3.04]
[1735540844969,2.598,192.86,192.81,3.96927101]
[1735540845264,2.598,192.86,192.8,3.04]
[1735540845265,2.598,192.86,192.82,3.96927101]
[1735540845463,2.598,192.86,192.8,3.04]
[1735540845464,8.26547368,192.85,192.81,2.5986]
[1735540846064,8.26547368,192.85,192.82,3.97026669]
[1735540846271,8.26547368,192.85,192.81,2.5986]
[1735540846565,8.26547368,192.85,192.82,3.97023937]
[1735540846770,8.26547368,192.85,192.81,2.5986]
[1735540847068,8.26547368,192.85,192.82,3.97026565]
[1735540847269,8.26547368,192.85,192.81,2.5986]
[1735540847568,8.26547368,192.85,192.82,3.97052747]
[1735540847766,8.26547368,192.85,192.81,2.5986]
[1735540847967,8.26547368,192.85,192.82,3.9705473]
[1735540848159,8.26547368,192.85,192.8,3.04]
[1735540848365,8.26547368,192.85,192.81,3.97086445]
[1735540848666,8.26547368,192.85,192.82,3.97086445]
[1735540848967,8.26547368,192.87,192.83,3.96989857]
[1735540849159,8.26547368,192.87,192.81,8.26547368]
[1735540849561,8.26547368,192.87,192.82,3.96991993]
[1735540849768,8.26547368,192.87,192.83,3.96991993]
[1735540849967,8.26547368,192.87,192.81,8.26547368]
[1735540850271,8.26547368,192.87,192.82,3.96939664]
[1735540850570,8.26547368,192.89,192.83,3.96939664]
[1735540850758,8.26547368,192.89,192.81,8.26547368]
[1735540850962,8.26547368,192.89,192.82,3.9684897]
[1735540851158,8.26547368,192.89,192.83,3.9684897]
[1735540851365,8.26547368,192.89,192.84,3.9684897]
[1735540851665,8.26547368,192.89,192.85,2.5981]
[1735540851858,8.26547368,192.89,192.81,8.26547368]
[1735540852065,8.26547368,192.89,192.83,8.26547368]
[1735540852267,8.26547368,192.89,192.84,3.96913914]
[1735540852466,8.26547368,192.89,192.85,7.00913914]
[1735540852767,8.26547368,192.89,192.85,3.04]